bitfinex-derivatives/quotes_SOLF0:USTF0_20250719
["timestamp","ask_amount","ask_price","bid_price","bid_amount"]
[1752944332730,3.05,177.65,177.62,2.06]
[1752944332731,3.2,177.65,177.64,5.6268]
[1752944332932,3.2,177.67,177.61,2.39193998]
[1752944333140,3.2,177.67,177.64,2.06]
[1752944333430,3.2,177.67,177.66,5.626]
[1752944333735,3.2,177.67,177.64,2.06]
[1752944333937,3.2,177.67,177.65,5.6264]
[1752944336938,3.2,177.67,177.66,5.6263]
[1752944339041,3.2,177.67,177.65,5.6265]
[1752944339535,3.2,177.67,177.64,2.06]
[1752944339840,3.2,177.67,177.61,2.39193998]
[1752944340037,3.2,177.67,177.63,2.06]
[1752944340239,3.2,177.67,177.65,5.6265]
[1752944341035,3.2,177.67,177.59,2.39193998]
[1752944341239,3.2,177.65,177.59,4.45193998]
[1752944341733,3.2,177.63,177.56,2.06]
[1752944342138,6.30986426,177.67,177.58,5.6285]
[1752944342139,3.2,177.61,177.58,5.6285]
[1752944342541,3.2,177.6,177.55,2.06]
[1752944342739,3.2,177.6,177.55,4.45193998]
[1752944342937,2.39193998,177.66,177.58,2.06]
[1752944343243,5.626,177.67,177.64,5.6267]
[1752944343543,3.2,177.7,177.64,2.06]
[1752944343742,8.8253,177.7,177.66,5.6261]
[1752944343944,3.2,177.7,177.66,5.6261]
[1752944344344,5.6254,177.69,177.66,5.6261]
[1752944344646,3.2,177.7,177.65,5.6266]
[1752944344941,5.6257,177.68,177.65,5.6266]
[1752944345141,3.2,177.67,177.65,5.6266]
[1752944348245,3.2,177.67,177.66,5.6263]
[1752944350144,3.2,177.66,177.57,2.06]
[1752944350445,3.2,177.66,177.61,2.39193998]
[1752944350641,3.2,177.66,177.65,5.6266]
[1752944353346,3.2,177.66,177.65,7.6866]
[1752944355844,3.2,177.66,177.65,5.6266]
[1752944357048,3.2,177.66,177.65,7.6866]
[1752944357652,3.2,177.66,177.65,5.6266]
[1752944361155,3.2,177.66,177.65,7.6866]
[1752944361658,3.16,177.68,177.67,5.6258]
[1752944362259,3.16,177.68,177.67,7.6858]
[1752944364463,3.16,177.68,177.67,5.6258]
[1752944366864,3.16,177.68,177.67,7.6858]
[1752944375069,3.16,177.68,177.67,5.6258]
[1752944379271,1.53272238,177.68,177.58,2.06]
[1752944379469,1.53272238,177.68,177.57,11.2582]
[1752944379470,3.16,177.67,177.63,1.53272238]
[1752944380170,4.69272238,177.67,177.55,4.71143444]
[1752944380374,3.16,177.64,177.6,1.53272238]
[1752944380669,3.16,177.64,177.6,3.59272238]
[1752944380873,3.16,177.64,177.6,1.53272238]
[1752944381074,3.16,177.64,177.62,5.6275]
[1752944381470,3.16,177.65,177.63,7.687]
[1752944382172,8.7866,177.65,177.63,2.06]
[1752944382369,3.16,177.64,177.62,5.6274]
[1752944382565,3.16,177.64,177.62,7.6874]
[1752944383875,8.7869,177.64,177.62,7.6874]
[1752944384073,3.16,177.63,177.62,7.6874]
[1752944384271,3.16,177.63,177.6,2.06]
[1752944384575,3.16,177.61,177.57,2.39634714]
[1752944384775,3.16,177.61,177.58,7.6886]
[1752944384975,3.16,177.6,177.58,5.6286]
[1752944385176,3.16,177.6,177.57,2.06]
[1752944385375,3.16,177.6,177.58,5.6288]
[1752944385966,3.16,177.6,177.58,7.6888]
[1752944387681,8.7882,177.6,177.58,7.6888]
[1752944387884,3.16,177.59,177.58,7.6888]
[1752944392278,3.22,177.63,177.59,7.6885]
[1752944392478,3.22,177.63,177.59,2.06]
[1752944392876,5.6281,177.61,177.59,2.06]
[1752944393178,3.22,177.6,177.59,2.06]
[1752944393782,3.22,177.6,177.59,7.6885]
[1752944394983,3.22,177.61,177.6,2.06]
[1752944396884,8.8479,177.61,177.6,2.06]
[1752944397584,3.22,177.61,177.6,2.06]
[1752944397890,2.39634714,177.66,177.6,7.6882]
[1752944398083,3.22,177.65,177.6,7.6882]
[1752944398685,3.22,177.64,177.6,2.06]
[1752944399294,5.6273,177.63,177.6,2.06]
[1752944399486,3.22,177.64,177.59,5.6284]
[1752944399686,3.22,177.64,177.59,7.6884]
[1752944399890,5.6276,177.62,177.59,7.6884]
[1752944400093,3.22,177.6,177.59,7.6884]
[1752944400290,3.22,177.65,177.6,2.06]
[1752944400493,3.22,177.64,177.55,2.06]
[1752944400686,3.22,177.64,177.57,2.39634714]
[1752944400890,3.22,177.64,177.59,7.6884]
[1752944401099,3.22,177.62,177.6,2.06]
[1752944401589,5.61634714,177.61,177.53,2.06]
[1752944401794,5.61634714,177.61,177.55,5.6295]
[1752944401795,3.22,177.61,177.55,5.6295]
[1752944401990,3.22,177.58,177.55,5.6295]
[1752944402387,3.22,177.58,177.54,5.6299]
[1752944402590,3.22,177.57,177.54,5.6299]
[1752944402992,6.31172896,177.65,177.56,2.06]
[1752944403195,5.629,177.67,177.55,2.39634714]
[1752944403196,3.22,177.62,177.55,2.39634714]
[1752944403496,2.39634714,177.59,177.54,7.6899]
[1752944403691,3.22,177.58,177.54,5.6299]
[1752944404298,3.22,177.58,177.55,5.6298]
[1752944404797,3.22,177.57,177.53,2.06]
[1752944405199,3.22,177.57,177.54,5.6298]
[1752944405599,3.22,177.57,177.53,2.06]
[1752944405800,3.22,177.57,177.54,2.06]
[1752944406293,5.61634714,177.57,177.43,11.2667]
[1752944406492,3.22,177.53,177.48,2.06]
[1752944406794,6.31172896,177.63,177.43,11.2667]
[1752944406795,3.22,177.51,177.43,4.45634714]
[1752944406991,3.22,177.51,177.46,2.06]
[1752944407188,3.22,177.5,177.46,2.06]
[1752944407699,3.22,177.5,177.49,5.6314]
[1752944407897,3.22,177.5,177.49,7.6914]
[1752944408997,3.22,177.5,177.49,5.6314]
[1752944409499,3.22,177.5,177.49,7.6914]
[1752944410501,3.22,177.5,177.49,5.6314]
[1752944411100,3.22,177.5,177.49,7.6914]
[1752944411404,3.22,177.54,177.5,2.06]
[1752944411597,3.22,177.54,177.51,2.06]
[1752944411800,3.22,177.54,177.53,5.6304]
[1752944411993,3.22,177.54,177.53,7.6904]
[1752944412392,3.22,177.54,177.53,5.6304]
[1752944413400,8.7080761,177.66,177.56,5.6294]
[1752944413401,3.22,177.59,177.56,5.6294]
[1752944414300,5.6277,177.62,177.56,2.06]
[1752944414508,3.22,177.59,177.58,2.06]
[1752944414893,3.22,177.59,177.58,7.6888]
[1752944415297,3.22,177.59,177.58,5.6288]
[1752944415701,3.22,177.59,177.57,5.6291]
[1752944416099,3.22,177.6,177.56,2.06]
[1752944416303,3.22,177.59,177.56,2.06]
[1752944416904,3.22,177.59,177.58,5.6288]
[1752944417105,3.22,177.59,177.58,7.6888]
[1752944420302,5.629,177.68,177.57,2.39634714]
[1752944420508,3.01,177.63,177.59,2.39634714]
[1752944420807,3.01,177.63,177.6,2.06]
[1752944421007,3.01,177.63,177.6,7.6879]
[1752944421401,3.01,177.63,177.6,5.6279]
[1752944421707,3.01,177.62,177.58,2.06]
[1752944422505,3.01,177.62,177.59,2.06]
[1752944422907,3.01,177.62,177.59,7.6882]
[1752944424810,3.01,177.61,177.59,5.6282]
[1752944426012,5.40634714,177.61,177.55,2.06]
[1752944426212,3.01,177.6,177.55,2.06]
[1752944426803,8.6384,177.6,177.57,5.6291]
[1752944427008,3.01,177.59,177.57,5.6291]
[1752944428509,3.01,177.59,177.58,7.6888]
[1752944431016,3.01,177.59,177.58,5.6288]
[1752944431514,3.01,177.59,177.57,7.689]
[1752944432513,3.01,177.58,177.56,5.6292]
[1752944432711,3.01,177.58,177.55,2.06]
[1752944433014,3.01,177.58,177.56,2.06]
[1752944433210,3.01,177.58,177.57,2.06]
[1752944433411,3.01,177.58,177.57,7.6891]
[1752944434809,2.39634714,177.65,177.59,2.06]
[1752944435018,3.01,177.64,177.6,2.06]
[1752944435317,3.01,177.64,177.62,5.6273]
[1752944435516,3.01,177.64,177.6,2.06]
[1752944436213,5.6271,177.64,177.61,5.6277]
[1752944436418,3.01,177.63,177.61,5.6277]
[1752944438119,3.01,177.63,177.62,5.6275]
[1752944441621,3.01,177.63,177.62,7.6875]
[1752944442318,5.6258,177.68,177.62,2.06]
[1752944442522,3.01,177.65,177.63,2.39634714]
[1752944442817,5.6261,177.67,177.64,7.6867]
[1752944443116,5.6261,177.67,177.63,2.39634714]
[1752944443117,3.01,177.66,177.62,2.06]
[1752944443313,8.6365,177.66,177.61,2.39634714]
[1752944443512,3.01,177.65,177.61,4.45634714]
[1752944443717,3.01,177.65,177.62,2.06]
[1752944444315,3.01,177.65,177.63,2.06]
[1752944444620,3.01,177.65,177.64,5.6269]
[1752944448618,3.01,177.65,177.63,5.6271]
[1752944449121,3.01,177.65,177.64,5.6269]
[1752944454124,3.01,177.65,177.63,5.627]
[1752944455826,3.01,177.65,177.61,2.05]
[1752944456125,3.01,177.65,177.62,2.05]
[1752944457119,3.01,177.65,177.63,5.6272]
[1752944458627,3.27,177.64,177.63,5.6272]
[1752944462030,3.27,177.64,177.63,7.6872]
[1752944462230,3.27,177.64,177.63,5.6272]
[1752944464532,3.27,177.64,177.62,5.6275]
[1752944464929,3.27,177.64,177.6,2.06]
[1752944465130,3.27,177.64,177.61,2.06]
[1752944465723,3.27,177.64,177.63,5.6272]
[1752944465932,3.27,177.66,177.63,2.06]
[1752944466433,3.27,177.65,177.64,7.6869]
[1752944467034,2.39634714,177.71,177.62,2.39634714]
[1752944467332,2.39634714,177.71,177.63,2.06]
[1752944467533,3.27,177.68,177.67,5.6259]
[1752944468128,3.27,177.68,177.66,5.6261]
[1752944468932,3.27,177.67,177.66,5.6261]
[1752944469931,3.27,177.66,177.6,4.45634714]
[1752944470134,3.27,177.66,177.6,2.39634714]
[1752944470332,3.27,177.66,177.62,2.06]
[1752944470833,3.27,177.66,177.64,5.6267]
[1752944473241,3.27,177.66,177.65,5.6266]
[1752944475435,3.27,177.66,177.64,5.6268]
[1752944476833,3.27,177.66,177.63,2.06]
[1752944476834,3.27,177.65,177.63,5.6272]
[1752944477338,3.27,177.65,177.61,2.06]
[1752944477542,3.27,177.65,177.63,5.627]
[1752944478135,3.27,177.65,177.63,5.6272]
[1752944478940,3.27,177.65,177.64,5.6269]
[1752944480638,3.27,177.65,177.63,5.6271]
[1752944481237,3.01,177.65,177.58,2.05]
[1752944481946,5.6271,177.64,177.61,5.6277]
[1752944482143,3.01,177.63,177.61,5.6277]
[1752944482442,3.01,177.63,177.59,2.05]
[1752944482642,3.01,177.63,177.6,2.05]
[1752944482842,9.46759344,177.69,177.57,2.39634714]
[1752944482843,2.39634714,177.69,177.62,2.05]
[1752944483044,3.01,177.68,177.62,2.05]
[1752944483538,3.01,177.68,177.66,5.6261]
[1752944483948,8.6357,177.68,177.66,5.6261]
[1752944484140,3.01,177.67,177.66,5.6261]
[1752944491246,3.01,177.67,177.65,5.6265]
[1752944492437,3.01,177.67,177.59,2.05]
[1752944492438,3.01,177.66,177.59,2.05]
[1752944492740,3.01,177.64,177.59,2.05]
[1752944492941,3.01,177.64,177.63,5.6272]
[1752944493142,2.39634714,177.69,177.63,2.05]
[1752944493341,3.01,177.65,177.63,2.05]
[1752944494341,6.31172896,177.72,177.61,2.39634714]
[1752944494342,3.01,177.68,177.61,2.39634714]
[1752944494546,3.01,177.68,177.64,2.05]
[1752944494743,2.39634714,177.72,177.64,2.05]
[1752944494943,3.01,177.67,177.66,5.6263]
[1752944495146,3.01,177.67,177.66,7.6763]
[1752944497346,3.01,177.67,177.66,5.6263]
[1752944499852,5.6251,177.7,177.67,7.6758]
[1752944500152,3.01,177.68,177.67,5.6258]
[1752944501050,3.01,177.7,177.65,2.39634714]
[1752944501352,3.01,177.7,177.68,2.05]
[1752944501554,3.01,177.7,177.69,5.6253]
[1752944501951,3.01,177.7,177.64,2.39634714]
[1752944502150,3.01,177.7,177.68,5.6255]
[1752944503853,3.01,177.7,177.69,5.6253]
[1752944509656,3.01,177.7,177.68,5.6255]
[1752944509852,3.01,177.7,177.67,2.05]
[1752944510856,3.01,177.7,177.69,5.6253]
[1752944516353,6.31172896,177.74,177.72,5.6242]
[1752944516660,3.24,177.73,177.72,5.6242]
[1752944517562,6.31172896,177.78,177.74,5.6236]
[1752944517855,3.24,177.74,177.72,2.06]
[1752944518157,3.24,177.74,177.63,17.53581259]
[1752944518158,2.39634714,177.73,177.69,2.06]
[1752944518360,3.24,177.72,177.66,2.06]
[1752944518756,3.24,177.72,177.7,5.6248]
[1752944520256,3.24,177.72,177.71,5.6247]
[1752944520662,3.24,177.73,177.71,2.05]
[1752944520863,2.39634714,177.77,177.72,2.05]
[1752944521155,6.31172896,177.79,177.72,2.05]
[1752944521156,2.39634714,177.79,177.72,2.05]
[1752944521362,3.24,177.75,177.74,5.6237]
[1752944521661,3.24,177.75,177.74,7.6737]
[1752944522661,2.39634714,177.81,177.77,5.6225]
[1752944523364,3.24,177.79,177.78,5.6224]
[1752944524257,3.24,177.79,177.78,7.6724]
[1752944524857,3.24,177.79,177.78,5.6224]
[1752944528162,3.24,177.79,177.77,5.6227]
[1752944529066,3.24,177.79,177.78,5.6225]
[1752944529866,3.24,177.79,177.78,7.6725]
[1752944530062,2.39634714,177.85,177.81,5.6215]
[1752944530368,2.39634714,177.85,177.8,2.05]
[1752944530664,3.24,177.84,177.79,2.05]
[1752944530866,3.24,177.83,177.8,2.05]
[1752944531062,3.24,177.83,177.77,2.39634714]
[1752944531262,3.24,177.83,177.77,4.44634714]
[1752944531469,3.24,177.83,177.77,2.05]
[1752944531667,3.24,177.83,177.78,2.05]
[1752944532365,2.39634714,177.86,177.82,5.6212]
[1752944532972,3.24,177.84,177.82,5.6212]
[1752944533270,5.63634714,177.84,177.71,11.2491]
[1752944533572,5.63634714,177.84,177.76,2.05]
[1752944533573,3.24,177.81,177.76,2.05]
[1752944534167,3.24,177.81,177.8,5.6218]
[1752944539179,3.24,177.8,177.76,2.05]
[1752944539971,2.39634714,177.84,177.75,2.39634714]
[1752944540172,2.39634714,177.84,177.77,2.39634714]
[1752944540381,2.39634714,177.84,177.78,2.05]
[1752944540578,3.09,177.83,177.78,2.05]
[1752944542375,3.09,177.83,177.79,2.05]
[1752944542878,8.7109,177.83,177.81,5.6213]
[1752944543081,3.09,177.82,177.81,5.6213]
[1752944552882,8.7113,177.82,177.79,7.672]
[1752944553181,3.09,177.79,177.73,2.05]
[1752944553582,3.09,177.79,177.72,2.39634714]
[1752944553583,3.09,177.79,177.75,2.05]
[1752944553779,3.09,177.79,177.76,2.05]
[1752944554184,5.6217,177.81,177.78,5.6222]
[1752944554488,2.39634714,177.82,177.78,2.05]
[1752944554684,3.09,177.81,177.79,5.6219]
[1752944555889,8.7116,177.81,177.79,5.6219]
[1752944556082,3.09,177.8,177.79,5.6219]
[1752944556285,3.09,177.8,177.78,7.6723]
[1752944556482,3.09,177.79,177.73,2.05]
[1752944557378,3.09,177.79,177.76,5.623]
[1752944557583,3.09,177.79,177.75,2.05]
[1752944558484,5.6223,177.79,177.76,5.623]
[1752944558692,3.09,177.78,177.76,5.623]
[1752944559189,3.09,177.78,177.73,2.05]
[1752944559591,5.48634714,177.78,177.73,2.05]
[1752944559888,3.09,177.77,177.72,2.05]
[1752944560281,3.09,177.72,177.69,2.05]
[1752944560485,3.09,177.72,177.66,2.39634714]
[1752944560685,3.09,177.72,177.67,2.05]
[1752944560886,3.09,177.78,177.71,2.05]
[1752944561485,8.7127,177.78,177.71,2.05]
[1752944561690,3.09,177.77,177.71,2.05]
[1752944562085,3.09,177.77,177.75,5.6233]
[1752944562286,3.09,177.77,177.76,2.05]
[1752944563092,5.6225,177.78,177.72,2.39634714]
[1752944563292,3.09,177.76,177.75,2.05]
[1752944564696,3.09,177.76,177.75,7.6734]
[1752944564994,3.09,177.78,177.75,2.05]
[1752944565194,2.39634714,177.8,177.77,5.6226]
[1752944565685,3.09,177.79,177.77,5.6226]
[1752944567000,3.09,177.78,177.76,5.623]
[1752944567796,3.09,177.78,177.77,5.6228]
[1752944568296,3.09,177.78,177.76,2.05]
[1752944568700,3.09,177.78,177.76,7.6729]
[1752944569397,3.09,177.78,177.76,5.6229]
[1752944571898,3.09,177.78,177.77,5.6228]
[1752944572095,3.09,177.78,177.77,7.6728]
[1752944572690,3.09,177.78,177.77,5.6228]
[1752944573201,3.09,177.78,177.76,5.623]
[1752944573600,3.09,177.78,177.72,2.05]
[1752944573805,5.48634714,177.78,177.72,2.05]
[1752944574099,3.21,177.77,177.72,2.05]
[1752944574299,3.21,177.77,177.75,5.6231]
[1752944574495,3.21,177.77,177.73,2.05]
[1752944575003,3.21,177.77,177.75,2.05]
[1752944575202,3.21,177.77,177.76,5.6231]
[1752944575403,3.21,177.77,177.76,7.6731]
[1752944582808,3.21,177.77,177.76,5.6231]
[1752944585708,3.21,177.77,177.76,7.6731]
[1752944586603,23.20172896,177.85,177.76,7.6731]
[1752944586604,6.31172896,177.85,177.76,2.05]
[1752944586910,3.21,177.83,177.79,2.05]
[1752944587108,3.21,177.83,177.8,2.05]
[1752944587305,3.21,177.83,177.81,5.6214]
[1752944588105,5.6211,177.83,177.8,5.6217]
[1752944588399,3.21,177.82,177.8,5.6217]
[1752944588908,3.21,177.8,177.78,5.6223]
[1752944589110,3.21,177.8,177.76,2.06]
[1752944589308,3.21,177.78,177.76,2.06]
[1752944589606,5.6215,177.81,177.78,5.6222]
[1752944589807,8.7080761,177.86,177.79,2.06]
[1752944590007,2.39634714,177.86,177.79,2.06]
[1752944590209,5.6207,177.84,177.81,5.6213]
[1752944590408,5.6207,177.84,177.81,3.08]
[1752944590801,5.6204,177.85,177.82,5.621]
[1752944591813,3.21,177.84,177.82,5.621]
[1752944593117,3.21,177.84,177.83,5.6209]
[1752944595713,3.21,177.84,177.82,5.6211]
[1752944597525,3.21,177.84,177.82,8.7011]
[1752944598520,3.21,177.84,177.83,5.6209]
[1752944599421,3.21,177.84,177.82,8.7011]
[1752944599720,8.8306,177.84,177.82,8.7011]
[1752944599924,3.21,177.83,177.82,8.7011]
[1752944601923,5.6209,177.83,177.81,5.6214]
[1752944602124,3.16,177.82,177.81,8.7414]
[1752944609429,4.69031473,177.82,177.81,8.7414]
[1752944609930,3.16,177.82,177.81,8.7414]
[1752944614834,3.16,177.86,177.83,3.12]
[1752944615028,3.16,177.86,177.84,3.12]
[1752944615432,3.16,177.85,177.84,8.7406]
[1752944615834,1.53031473,177.89,177.85,3.12]
[1752944616029,3.16,177.88,177.86,3.12]
[1752944616439,3.16,177.88,177.84,1.53031473]
[1752944616744,3.16,177.87,177.86,3.12]
[1752944616945,4.69031473,177.87,177.84,1.53031473]
[1752944617150,3.16,177.86,177.84,8.7404]
[1752944617439,3.16,177.86,177.85,3.12]
[1752944617743,3.16,177.86,177.85,8.7402]
[1752944618141,3.16,177.91,177.85,3.12]
[1752944618342,3.16,177.88,177.87,3.12]
[1752944620545,8.7793,177.88,177.87,3.12]
[1752944621544,3.16,177.87,177.86,3.12]
[1752944623151,2.38977202,177.91,177.87,3.12]
[1752944623351,5.6192,177.89,177.87,3.12]
[1752944623550,3.16,177.9,177.87,3.12]
[1752944623942,5.6192,177.89,177.87,3.12]
[1752944624250,3.16,177.88,177.87,3.12]
[1752944625949,8.7793,177.88,177.87,3.12]
[1752944626743,3.16,177.88,177.87,3.12]
[1752944629852,8.7793,177.88,177.86,5.6197]
[1752944630042,3.16,177.87,177.86,8.7397]
[1752944630848,3.16,177.87,177.86,3.12]
[1752944632052,3.16,177.87,177.86,8.7399]
[1752944632946,5.6188,177.9,177.87,5.6195]
[1752944633153,3.15,177.89,177.88,3.09]
[1752944633748,3.15,177.89,177.88,8.7093]
[1752944633944,3.15,177.89,177.88,3.09]
[1752944635252,8.769,177.89,177.88,3.09]
[1752944635844,3.15,177.89,177.88,3.09]
[1752944636547,8.769,177.89,177.88,3.09]
[1752944637148,3.15,177.89,177.82,2.38977202]
[1752944637352,3.15,177.89,177.83,3.09]
[1752944637545,5.6194,177.88,177.85,5.6199]
[1752944637743,3.15,177.87,177.86,3.09]
[1752944638855,3.15,177.87,177.86,8.7099]
[1752944640851,3.15,177.87,177.86,3.09]
[1752944641755,4.6795371,177.87,177.86,3.09]
[1752944641948,3.15,177.86,177.8,3.09]
[1752944642154,3.15,177.84,177.82,3.09]
[1752944642758,3.15,177.81,177.8,3.09]
[1752944643556,3.15,177.81,177.8,8.7118]
[1752944643759,3.15,177.82,177.81,3.09]
[1752944645057,3.15,177.82,177.81,8.7115]
[1752944647561,3.15,177.83,177.82,5.621]
[1752944647756,3.15,177.83,177.8,1.5295371]
[1752944647962,1.5295371,177.84,177.8,1.5295371]
[1752944648260,3.15,177.82,177.81,3.09]
[1752944648756,3.15,177.82,177.81,8.7113]
[1752944649064,3.15,177.82,177.81,3.09]
[1752944649957,3.15,177.82,177.81,8.7115]
[1752944650160,4.6795371,177.82,177.8,3.09]
[1752944650361,3.15,177.8,177.79,167.62911941]
[1752944650666,4.6795371,177.8,177.79,170.71911941]
[1752944651465,3.15,177.8,177.79,176.34131941]
[1752944652968,3.15,177.8,177.79,173.25131941]
[1752944653170,4.6795371,177.8,177.79,173.25131941]
[1752944653366,4.6795371,177.8,177.79,167.62911941]
[1752944654069,4.6795371,177.8,177.79,173.25121941]
[1752944654370,4.6795371,177.8,177.79,176.34121941]
[1752944654959,3.15,177.8,177.79,176.34121941]
[1752944655164,4.6795371,177.8,177.79,176.34121941]
[1752944656265,3.15,177.87,177.8,3.09]
[1752944656471,6.31172896,177.88,177.8,3.09]
[1752944656472,4.6795371,177.81,177.8,3.09]
[1752944657873,4.6795371,177.81,177.8,8.7117]
[1752944662880,3.15,177.81,177.8,8.7117]
[1752944665683,3.15,177.81,177.8,3.09]
[1752944665876,3.21,177.8,177.79,167.62911941]
[1752944666580,3.21,177.8,177.79,170.70911941]
[1752944668981,3.21,177.8,177.79,3.08]
[1752944669384,8.8318,177.8,177.79,3.08]
[1752944669579,3.21,177.79,177.78,105.66]
[1752944670382,3.21,177.79,177.78,111.2825]
[1752944671582,3.21,177.79,177.78,8.7025]
[1752944671772,3.21,177.79,177.77,1.5295371]
[1752944671773,1.5295371,177.81,177.77,3.08]
[1752944671973,4.7395371,177.8,177.76,102.56]
[1752944672179,3.21,177.79,177.78,3.08]
[1752944672380,3.21,177.79,177.78,105.64]
[1752944673184,3.21,177.79,177.78,111.2625]
[1752944675689,3.21,177.81,177.8,3.08]
[1752944678085,6.31172896,177.88,177.8,105.64]
[1752944678291,3.21,177.83,177.81,3.08]
[1752944678585,5.62,177.86,177.83,8.7008]
[1752944678785,3.21,177.86,177.84,3.08]
[1752944679694,3.21,177.85,177.84,3.08]
[1752944682094,8.8302,177.85,177.84,3.08]
[1752944685096,10.3597371,177.85,177.84,3.08]
[1752944685597,8.8302,177.85,177.84,3.08]
[1752944685817,10.3597371,177.85,177.84,3.08]
[1752944688898,5.6207,177.84,177.83,3.08]
[1752944689197,1.5295371,177.84,177.81,3.08]
[1752944689390,1.5295371,177.82,177.8,102.54]
[1752944689593,3.21,177.81,177.8,105.62]
[1752944690287,3.21,177.81,177.76,1.5295371]
[1752944690488,3.09,177.79,177.77,105.83]
[1752944690699,3.09,177.78,177.77,102.52]
[1752944691196,3.09,177.78,177.77,105.83]
[1752944692295,3.09,177.78,177.77,111.4528]
[1752944696799,3.09,177.79,177.78,5.6225]
[1752944696999,3.09,177.79,177.78,8.9325]
[1752944700198,4.6195371,177.79,177.78,8.9325]
[1752944700707,3.09,177.81,177.8,8.9316]
[1752944701003,4.6195371,177.81,177.8,3.31]
[1752944702407,4.6195371,177.81,177.8,8.9318]
[1752944703614,3.09,177.81,177.8,8.9318]
[1752944705716,8.7115,177.81,177.8,3.31]
[1752944707420,3.09,177.81,177.8,3.31]
[1752944709317,3.09,177.81,177.8,8.9318]
[1752944709618,3.09,177.81,177.8,3.31]
[1752944711117,3.09,177.81,177.8,8.9318]
[1752944711717,3.09,177.81,177.8,3.31]
[1752944712113,7.1507371,177.82,177.8,3.31]
[1752944712320,3.09,177.88,177.82,3.31]
[1752944712522,3.09,177.88,177.84,4.8395371]
[1752944712720,1.5295371,177.85,177.8,1.5295371]
[1752944713021,3.09,177.82,177.8,3.31]
[1752944713217,3.09,177.82,177.8,8.9318]
[1752944713522,3.09,177.82,177.79,105.81]
[1752944714018,3.09,177.82,177.79,3.31]
[1752944714220,4.6195371,177.82,177.79,8.932]
[1752944714421,3.09,177.81,177.79,8.932]
[1752944715120,3.09,177.81,177.79,5.622]
[1752944715316,3.09,177.81,177.8,3.31]
[1752944720527,3.09,177.81,177.8,5.6218]
[1752944720725,3.2,177.83,177.81,3.15]
[1752944721327,3.2,177.83,177.82,5.6211]
[1752944721527,3.2,177.83,177.82,8.7711]
[1752944726538,3.2,177.83,177.82,3.15]
[1752944726938,3.2,177.83,177.74,214.12117076]
[1752944726939,3.2,177.83,177.79,3.15]
[1752944727139,3.2,177.81,177.79,8.772]
[1752944728038,3.2,177.81,177.8,5.6218]
[1752944729736,3.2,177.81,177.8,8.7718]